[Event "Titled Tuesday Blitz November 08 Early 2022"]
[White "Alhadad, Mahmoud"]
[Black "Moskvin, Anatoly"]
[WhiteFideId "11501863"]
[BlackFideId "24199990"]
[WhiteElo "1955"]
[BlackElo "2079"]
[Result "0-1"]
[Round "04"]
[TimeControl "180+1"]
[Date "2022.11.09"]
[WhiteClock "0:00:10"]
[BlackClock "0:00:20"]

1. e4 {[%clk 0:02:45]}  e5 {[%clk 0:02:59]} 2. d4 {[%clk 0:02:45]}  exd4 {[%clk 0:02:59]} 3. Bc4 {[%clk 0:02:46]}  Nc6 {[%clk 0:02:59]} 4. Nf3 {[%clk 0:02:46]}  Nf6 {[%clk 0:02:59]} 5. O-O {[%clk 0:02:47]}  Nxe4 {[%clk 0:02:59]} 6. Nc3 {[%clk 0:02:48]}  Nxc3 {[%clk 0:02:57]} 7. bxc3 {[%clk 0:02:47]}  Be7 {[%clk 0:02:58]} 8. cxd4 {[%clk 0:02:47]}  d5 {[%clk 0:02:58]} 9. Bb5 {[%clk 0:02:46]}  O-O {[%clk 0:02:57]} 10. Bxc6 {[%clk 0:02:45]}  bxc6 {[%clk 0:02:57]} 11. Ne5 {[%clk 0:02:46]}  Bf6 {[%clk 0:02:30]} 12. Qf3 {[%clk 0:02:21]}  c5 {[%clk 0:02:24]} 13. Ba3 {[%clk 0:02:19]}  cxd4 {[%clk 0:02:10]} 14. Bxf8 {[%clk 0:02:06]}  Kxf8 {[%clk 0:02:10]} 15. Qa3+ {[%clk 0:01:41]}  Qe7 {[%clk 0:01:53]} 16. Qxe7+ {[%clk 0:01:39]}  Kxe7 {[%clk 0:01:54]} 17. Rfe1 {[%clk 0:01:37]}  Be6 {[%clk 0:01:51]} 18. f4 {[%clk 0:01:34]}  Kd6 {[%clk 0:01:45]} 19. h3 {[%clk 0:01:25]}  g5 {[%clk 0:01:29]} 20. Nd3 {[%clk 0:01:19]}  c5 {[%clk 0:01:21]} 21. Kf2 {[%clk 0:00:42]}  c4 {[%clk 0:01:05]} 22. fxg5 {[%clk 0:00:38]}  Bxg5 {[%clk 0:00:55]} 23. Nb4 {[%clk 0:00:37]}  a5 {[%clk 0:00:53]} 24. a3 {[%clk 0:00:33]}  Bd2 {[%clk 0:00:31]} 25. Red1 {[%clk 0:00:20]}  Bc3 {[%clk 0:00:31]} 26. Rab1 {[%clk 0:00:18]}  axb4 {[%clk 0:00:31]} 27. axb4 {[%clk 0:00:18]}  Rb8 {[%clk 0:00:32]} 28. b5 {[%clk 0:00:18]}  Bf5 {[%clk 0:00:31]} 29. Rdc1 {[%clk 0:00:14]}  Kc5 {[%clk 0:00:29]} 30. b6 {[%clk 0:00:13]}  Rxb6 {[%clk 0:00:24]} 31. Rxb6 {[%clk 0:00:14]}  Kxb6 {[%clk 0:00:25]} 32. g4 {[%clk 0:00:15]}  Be4 {[%clk 0:00:25]} 33. Kg3 {[%clk 0:00:14]}  Kc5 {[%clk 0:00:25]} 34. Kf4 {[%clk 0:00:14]}  Bd2+ {[%clk 0:00:26]} 35. Ke5 {[%clk 0:00:13]}  Bxc1 {[%clk 0:00:27]} 36. h4 {[%clk 0:00:13]}  Bxc2 {[%clk 0:00:27]} 37. g5 {[%clk 0:00:14]}  d3 {[%clk 0:00:28]} 38. Kf6 {[%clk 0:00:14]}  d2 {[%clk 0:00:29]} 39. Kg7 {[%clk 0:00:15]}  d1=Q {[%clk 0:00:29]} 40. Kh8 {[%clk 0:00:16]}  Bb2+ {[%clk 0:00:28]} 41. Kg8 {[%clk 0:00:16]}  Qh5 {[%clk 0:00:25]} 42. g6 {[%clk 0:00:16]}  Qxg6+ {[%clk 0:00:19]} 43. Kf8 {[%clk 0:00:15]}  Qe6 {[%clk 0:00:19]} 44. h5 {[%clk 0:00:16]}  f5 {[%clk 0:00:19]} 45. h6 {[%clk 0:00:16]}  Qxh6+ {[%clk 0:00:19]} 46. Kg8 {[%clk 0:00:16]}  Ba3 {[%clk 0:00:18]} 47. Kf7 {[%clk 0:00:14]}  Kd4 {[%clk 0:00:19]} 48. Ke8 {[%clk 0:00:12]}  Ke5 {[%clk 0:00:19]} 49. Kd7 {[%clk 0:00:13]}  f4 {[%clk 0:00:19]} 50. Kc7 {[%clk 0:00:11]}  Bf5 {[%clk 0:00:19]} 51. Kd8 {[%clk 0:00:11]}  Qg7 {[%clk 0:00:19]} 52. Ke8 {[%clk 0:00:10]}  Qe7# {[%clk 0:00:20]} 0-1


[Site "https://www.chess.com"]

[Event "Titled Tuesday Blitz November 08 Early 2022"]
[White "Anton Guijarro, David"]
[Black "Durarbayli, Vasif"]
[WhiteFideId "2285525"]
[BlackFideId "13402935"]
[WhiteElo "2579"]
[BlackElo "2586"]
[Result "0-1"]
[Round "04"]
[TimeControl "180+1"]
[Date "2022.11.08"]
[WhiteClock "0:00:04"]
[BlackClock "0:00:07"]

1. e4 {[%clk 0:03:00]}  c5 {[%clk 0:02:58]} 2. Nc3 {[%clk 0:03:00]}  d6 {[%clk 0:02:58]} 3. f4 {[%clk 0:03:00]}  g6 {[%clk 0:02:56]} 4. Nf3 {[%clk 0:03:00]}  Bg7 {[%clk 0:02:56]} 5. Bb5+ {[%clk 0:03:00]}  Bd7 {[%clk 0:02:54]} 6. Bc4 {[%clk 0:03:00]}  Nc6 {[%clk 0:02:51]} 7. d3 {[%clk 0:03:00]}  Na5 {[%clk 0:02:51]} 8. Bd2 {[%clk 0:03:00]}  e6 {[%clk 0:02:49]} 9. e5 {[%clk 0:02:56]}  d5 {[%clk 0:02:44]} 10. Bb5 {[%clk 0:02:56]}  Ne7 {[%clk 0:02:30]} 11. d4 {[%clk 0:02:37]}  cxd4 {[%clk 0:02:17]} 12. Nxd4 {[%clk 0:02:36]}  O-O {[%clk 0:02:06]} 13. Bxd7 {[%clk 0:02:28]}  Qxd7 {[%clk 0:02:06]} 14. b3 {[%clk 0:02:27]}  Nac6 {[%clk 0:01:58]} 15. Nce2 {[%clk 0:02:23]}  g5 {[%clk 0:01:43]} 16. fxg5 {[%clk 0:02:15]}  Nxe5 {[%clk 0:01:35]} 17. O-O {[%clk 0:02:09]}  Rac8 {[%clk 0:01:27]} 18. c3 {[%clk 0:01:56]}  N7g6 {[%clk 0:01:22]} 19. Ng3 {[%clk 0:01:53]}  Nc6 {[%clk 0:01:03]} 20. Be3 {[%clk 0:01:53]}  Nxd4 {[%clk 0:01:01]} 21. Bxd4 {[%clk 0:01:37]}  e5 {[%clk 0:01:01]} 22. Bxa7 {[%clk 0:01:37]}  Rxc3 {[%clk 0:01:00]} 23. Nh5 {[%clk 0:01:30]}  d4 {[%clk 0:00:55]} 24. b4 {[%clk 0:01:28]}  Qd5 {[%clk 0:00:47]} 25. Rf2 {[%clk 0:00:51]}  Rd8 {[%clk 0:00:34]} 26. Bb6 {[%clk 0:00:36]}  Rd6 {[%clk 0:00:27]} 27. Bc5 {[%clk 0:00:34]}  Re6 {[%clk 0:00:17]} 28. Nf6+ {[%clk 0:00:33]}  Bxf6 {[%clk 0:00:15]} 29. gxf6 {[%clk 0:00:34]}  b6 {[%clk 0:00:13]} 30. Rc1 {[%clk 0:00:29]}  Rxc1 {[%clk 0:00:09]} 31. Qxc1 {[%clk 0:00:30]}  bxc5 {[%clk 0:00:09]} 32. Qh6 {[%clk 0:00:30]}  Rxf6 {[%clk 0:00:10]} 33. Rxf6 {[%clk 0:00:30]}  d3 {[%clk 0:00:07]} 34. Rf1 {[%clk 0:00:12]}  cxb4 {[%clk 0:00:06]} 35. Qe3 {[%clk 0:00:11]}  Nf4 {[%clk 0:00:04]} 36. Rf2 {[%clk 0:00:10]}  f6 {[%clk 0:00:03]} 37. h4 {[%clk 0:00:10]}  Qc4 {[%clk 0:00:03]} 38. Kh2 {[%clk 0:00:09]}  Kf7 {[%clk 0:00:02]} 39. Qf3 {[%clk 0:00:08]}  Nd5 {[%clk 0:00:01]} 40. Qh5+ {[%clk 0:00:07]}  Ke6 {[%clk 0:00:02]} 41. Qe8+ {[%clk 0:00:07]}  Kd6 {[%clk 0:00:03]} 42. Qd8+ {[%clk 0:00:07]}  Kc5 {[%clk 0:00:03]} 43. Qc8+ {[%clk 0:00:05]}  Kd4 {[%clk 0:00:04]} 44. Qg4+ {[%clk 0:00:06]}  e4 {[%clk 0:00:04]} 45. Qg3 {[%clk 0:00:04]}  Qc7 {[%clk 0:00:05]} 46. Qxc7 {[%clk 0:00:03]}  Nxc7 {[%clk 0:00:06]} 47. Rxf6 {[%clk 0:00:03]}  d2 {[%clk 0:00:06]} 48. Rc6 {[%clk 0:00:04]}  d1=Q {[%clk 0:00:06]} 49. Rxc7 {[%clk 0:00:04]}  Qg4 {[%clk 0:00:06]} 50. Rxh7 {[%clk 0:00:03]}  e3 {[%clk 0:00:07]} 51. g3 {[%clk 0:00:02]}  Qe2+ {[%clk 0:00:06]} 52. Kh3 {[%clk 0:00:02]}  Qf1+ {[%clk 0:00:07]} 53. Kg4 {[%clk 0:00:02]}  e2 {[%clk 0:00:08]} 54. Rd7+ {[%clk 0:00:03]}  Kc3 {[%clk 0:00:08]} 55. Re7 {[%clk 0:00:04]}  e1=Q {[%clk 0:00:07]} 0-1


[Site "https://www.chess.com"]

[Event "Titled Tuesday Blitz November 08 Early 2022"]
[White "Artemenko, Oleg"]
[Black "Kowalczyk, Pawel"]
[WhiteFideId "14201798"]
[BlackFideId "1130641"]
[WhiteElo "2287"]
[BlackElo "2324"]
[Result "1-0"]
[Round "04"]
[TimeControl "180+1"]
[Date "2022.11.08"]
[WhiteClock "0:00:20"]
[BlackClock "0:00:12"]

1. d4 {[%clk 0:03:00]}  Nf6 {[%clk 0:02:53]} 2. Nc3 {[%clk 0:03:01]}  d5 {[%clk 0:02:53]} 3. Bf4 {[%clk 0:03:01]}  c6 {[%clk 0:02:49]} 4. e3 {[%clk 0:03:00]}  g6 {[%clk 0:02:49]} 5. h4 {[%clk 0:03:00]}  h5 {[%clk 0:02:46]} 6. Nf3 {[%clk 0:03:00]}  Bg7 {[%clk 0:02:46]} 7. Be2 {[%clk 0:03:00]}  Bg4 {[%clk 0:02:39]} 8. Ne5 {[%clk 0:03:00]}  Bxe2 {[%clk 0:02:39]} 9. Qxe2 {[%clk 0:02:59]}  Nfd7 {[%clk 0:02:39]} 10. O-O-O {[%clk 0:02:59]}  Nxe5 {[%clk 0:02:39]} 11. dxe5 {[%clk 0:03:00]}  Nd7 {[%clk 0:02:35]} 12. e4 {[%clk 0:02:58]}  e6 {[%clk 0:02:25]} 13. exd5 {[%clk 0:02:58]}  cxd5 {[%clk 0:02:23]} 14. Nxd5 {[%clk 0:02:41]}  exd5 {[%clk 0:02:21]} 15. Rxd5 {[%clk 0:02:41]}  Qb6 {[%clk 0:02:09]} 16. Rhd1 {[%clk 0:02:39]}  Nf8 {[%clk 0:01:41]} 17. Rd6 {[%clk 0:02:32]}  Qb4 {[%clk 0:01:28]} 18. R1d4 {[%clk 0:02:29]}  Qa5 {[%clk 0:01:22]} 19. Bd2 {[%clk 0:02:12]}  Bh6 {[%clk 0:00:45]} 20. f4 {[%clk 0:02:06]}  Qc5 {[%clk 0:00:41]} 21. b4 {[%clk 0:01:37]}  Qc8 {[%clk 0:00:39]} 22. Qb5+ {[%clk 0:01:32]}  Ke7 {[%clk 0:00:39]} 23. Rc4 {[%clk 0:01:28]}  Qb8 {[%clk 0:00:31]} 24. Kb1 {[%clk 0:00:31]}  a6 {[%clk 0:00:31]} 25. Qd5 {[%clk 0:00:27]}  b5 {[%clk 0:00:24]} 26. Rcc6 {[%clk 0:00:19]}  Ra7 {[%clk 0:00:24]} 27. f5 {[%clk 0:00:19]}  Bxd2 {[%clk 0:00:19]} 28. f6+ {[%clk 0:00:19]}  Ke8 {[%clk 0:00:19]} 29. Qxd2 {[%clk 0:00:19]}  Rd7 {[%clk 0:00:20]} 30. Qd5 {[%clk 0:00:18]}  Rxd6 {[%clk 0:00:20]} 31. Rxd6 {[%clk 0:00:18]}  Qc8 {[%clk 0:00:20]} 32. Rc6 {[%clk 0:00:17]}  Qd7 {[%clk 0:00:20]} 33. Qc5 {[%clk 0:00:17]}  Ne6 {[%clk 0:00:20]} 34. Rc8+ {[%clk 0:00:17]}  Nd8 {[%clk 0:00:20]} 35. Rc7 {[%clk 0:00:17]}  Qd1+ {[%clk 0:00:20]} 36. Kb2 {[%clk 0:00:17]}  Qd7 {[%clk 0:00:09]} 37. Rxd7 {[%clk 0:00:17]}  Kxd7 {[%clk 0:00:10]} 38. Qd6+ {[%clk 0:00:18]}  Kc8 {[%clk 0:00:11]} 39. Qxa6+ {[%clk 0:00:18]}  Kc7 {[%clk 0:00:11]} 40. Qxb5 {[%clk 0:00:19]}  Nc6 {[%clk 0:00:12]} 41. Qc5 {[%clk 0:00:19]}  Rb8 {[%clk 0:00:12]} 42. c3 {[%clk 0:00:20]}  Rd8 {[%clk 0:00:12]} 43. b5 {[%clk 0:00:20]}  Kb7 {[%clk 0:00:12]} 44. Qxc6+ {[%clk 0:00:20]} 1-0


[Site "https://www.chess.com"]

[Event "Titled Tuesday Blitz November 08 Early 2022"]
[White "Artemiev, Vladislav"]
[Black "Molina, Roberto Junio Brito"]
[WhiteFideId "24101605"]
[BlackFideId "2109450"]
[WhiteElo "2802"]
[BlackElo "2388"]
[Result "1-0"]
[Round "04"]
[TimeControl "180+1"]
[Date "2022.11.08"]
[WhiteClock "0:00:21"]
[BlackClock "0:01:11"]

1. Nf3 {[%clk 0:02:58]}  d5 {[%clk 0:02:59]} 2. e3 {[%clk 0:02:57]}  c6 {[%clk 0:02:57]} 3. c4 {[%clk 0:02:56]}  Nf6 {[%clk 0:02:57]} 4. Nc3 {[%clk 0:02:56]}  a6 {[%clk 0:02:55]} 5. h3 {[%clk 0:02:51]}  Bf5 {[%clk 0:02:55]} 6. b3 {[%clk 0:02:43]}  h6 {[%clk 0:02:54]} 7. Ba3 {[%clk 0:02:40]}  Nbd7 {[%clk 0:02:53]} 8. Be2 {[%clk 0:02:27]}  e6 {[%clk 0:02:52]} 9. Bxf8 {[%clk 0:02:26]}  Nxf8 {[%clk 0:02:53]} 10. b4 {[%clk 0:02:22]}  N8d7 {[%clk 0:02:52]} 11. O-O {[%clk 0:02:18]}  O-O {[%clk 0:02:51]} 12. Qb3 {[%clk 0:02:17]}  Qe7 {[%clk 0:02:48]} 13. Rfc1 {[%clk 0:02:03]}  Rfe8 {[%clk 0:02:46]} 14. a4 {[%clk 0:01:49]}  Ne4 {[%clk 0:02:36]} 15. d3 {[%clk 0:01:16]}  Nxc3 {[%clk 0:02:33]} 16. Qxc3 {[%clk 0:01:17]}  dxc4 {[%clk 0:02:30]} 17. Qxc4 {[%clk 0:01:10]}  e5 {[%clk 0:02:26]} 18. b5 {[%clk 0:01:08]}  axb5 {[%clk 0:02:24]} 19. axb5 {[%clk 0:01:07]}  c5 {[%clk 0:02:24]} 20. Rxa8 {[%clk 0:01:05]}  Rxa8 {[%clk 0:02:25]} 21. Qd5 {[%clk 0:01:05]}  Rb8 {[%clk 0:02:08]} 22. Nd2 {[%clk 0:01:01]}  Be6 {[%clk 0:02:07]} 23. Qe4 {[%clk 0:01:01]}  b6 {[%clk 0:02:02]} 24. Ra1 {[%clk 0:00:57]}  Qd6 {[%clk 0:01:55]} 25. Nc4 {[%clk 0:00:57]}  Qd5 {[%clk 0:01:52]} 26. Qxd5 {[%clk 0:00:36]}  Bxd5 {[%clk 0:01:53]} 27. Nd6 {[%clk 0:00:32]}  Ra8 {[%clk 0:01:48]} 28. Rxa8+ {[%clk 0:00:32]}  Bxa8 {[%clk 0:01:49]} 29. Bg4 {[%clk 0:00:32]}  Nf6 {[%clk 0:01:41]} 30. Nc4 {[%clk 0:00:32]}  h5 {[%clk 0:01:25]} 31. Nxb6 {[%clk 0:00:23]}  Bxg2 {[%clk 0:01:21]} 32. Kxg2 {[%clk 0:00:23]}  hxg4 {[%clk 0:01:21]} 33. hxg4 {[%clk 0:00:24]}  Kf8 {[%clk 0:01:15]} 34. g5 {[%clk 0:00:22]}  Ne8 {[%clk 0:01:15]} 35. Nd7+ {[%clk 0:00:22]}  Ke7 {[%clk 0:01:14]} 36. Nxe5 {[%clk 0:00:21]}  Nd6 {[%clk 0:01:11]} 37. b6 {[%clk 0:00:20]}  f6 {[%clk 0:01:10]} 38. gxf6+ {[%clk 0:00:20]}  gxf6 {[%clk 0:01:11]} 39. Nc4 {[%clk 0:00:21]} 1-0


[Site "https://www.chess.com"]

[Event "Titled Tuesday Blitz November 08 Early 2022"]
[White "Aung Thant Zin"]
[Black "Darini, Pouria"]
[WhiteFideId "13000063"]
[BlackFideId "12502200"]
[WhiteElo "2278"]
[BlackElo "2483"]
[Result "0-1"]
[Round "04"]
[TimeControl "180+1"]
[Date "2022.11.09"]
[WhiteClock "0:00:19"]
[BlackClock "0:00:07"]

1. e4 {[%clk 0:03:00]}  c5 {[%clk 0:02:54]} 2. Nf3 {[%clk 0:02:59]}  Nc6 {[%clk 0:02:53]} 3. Bb5 {[%clk 0:02:59]}  e6 {[%clk 0:02:53]} 4. O-O {[%clk 0:02:59]}  Nge7 {[%clk 0:02:54]} 5. b3 {[%clk 0:02:58]}  a6 {[%clk 0:02:51]} 6. Bxc6 {[%clk 0:02:58]}  Nxc6 {[%clk 0:02:51]} 7. Bb2 {[%clk 0:02:59]}  b5 {[%clk 0:02:00]} 8. d4 {[%clk 0:02:54]}  cxd4 {[%clk 0:02:00]} 9. Nxd4 {[%clk 0:02:54]}  Bb7 {[%clk 0:02:00]} 10. Re1 {[%clk 0:02:51]}  Qb6 {[%clk 0:01:50]} 11. c3 {[%clk 0:02:41]}  Bc5 {[%clk 0:01:43]} 12. Na3 {[%clk 0:02:33]}  O-O {[%clk 0:01:38]} 13. Nac2 {[%clk 0:02:33]}  Rad8 {[%clk 0:01:27]} 14. Qd2 {[%clk 0:02:24]}  Qc7 {[%clk 0:01:10]} 15. Ne3 {[%clk 0:02:01]}  Ne7 {[%clk 0:01:04]} 16. Nf1 {[%clk 0:01:37]}  Ng6 {[%clk 0:00:56]} 17. Rac1 {[%clk 0:01:31]}  d5 {[%clk 0:00:54]} 18. e5 {[%clk 0:01:20]}  Nxe5 {[%clk 0:00:50]} 19. Ng3 {[%clk 0:00:46]}  Ng6 {[%clk 0:00:46]} 20. Nh5 {[%clk 0:00:40]}  Bc8 {[%clk 0:00:32]} 21. c4 {[%clk 0:00:38]}  e5 {[%clk 0:00:32]} 22. cxd5 {[%clk 0:00:34]}  exd4 {[%clk 0:00:25]} 23. b4 {[%clk 0:00:32]}  Rxd5 {[%clk 0:00:14]} 24. bxc5 {[%clk 0:00:28]}  Rxh5 {[%clk 0:00:14]} 25. Qxd4 {[%clk 0:00:27]}  f6 {[%clk 0:00:13]} 26. c6 {[%clk 0:00:24]}  Qxh2+ {[%clk 0:00:13]} 27. Kf1 {[%clk 0:00:25]}  Nf4 {[%clk 0:00:07]} 28. f3 {[%clk 0:00:19]}  Qxg2# {[%clk 0:00:07]} 0-1


[Site "https://www.chess.com"]

[Event "Titled Tuesday Blitz November 08 Early 2022"]
[White "Bagrationi, Alexander"]
[Black "Storey, Charles H"]
[WhiteFideId "14104954"]
[BlackFideId "406686"]
[WhiteElo "2398"]
[BlackElo "2252"]
[Result "0-1"]
[Round "04"]
[TimeControl "180+1"]
[Date "2022.11.09"]
[WhiteClock "0:00:02"]
[BlackClock "0:00:11"]

1. e4 {[%clk 0:02:59]}  g6 {[%clk 0:02:56]} 2. d4 {[%clk 0:02:59]}  Bg7 {[%clk 0:02:56]} 3. Nc3 {[%clk 0:03:00]}  c5 {[%clk 0:02:57]} 4. d5 {[%clk 0:02:57]}  d6 {[%clk 0:02:56]} 5. Nge2 {[%clk 0:02:54]}  Nf6 {[%clk 0:02:52]} 6. g3 {[%clk 0:02:52]}  h5 {[%clk 0:02:50]} 7. Bg2 {[%clk 0:02:51]}  h4 {[%clk 0:02:50]} 8. O-O {[%clk 0:02:51]}  a6 {[%clk 0:02:42]} 9. a4 {[%clk 0:02:51]}  Nbd7 {[%clk 0:02:41]} 10. gxh4 {[%clk 0:02:40]}  Rxh4 {[%clk 0:02:35]} 11. Bg5 {[%clk 0:02:40]}  Rh5 {[%clk 0:02:29]} 12. f4 {[%clk 0:02:39]}  Nh7 {[%clk 0:02:29]} 13. Ng3 {[%clk 0:02:39]}  Rxg5 {[%clk 0:02:24]} 14. fxg5 {[%clk 0:02:39]}  Nxg5 {[%clk 0:02:24]} 15. h4 {[%clk 0:02:33]}  Bd4+ {[%clk 0:02:22]} 16. Kh1 {[%clk 0:02:33]}  Nh7 {[%clk 0:02:07]} 17. h5 {[%clk 0:01:53]}  Ne5 {[%clk 0:02:01]} 18. hxg6 {[%clk 0:01:47]}  fxg6 {[%clk 0:02:01]} 19. Nce2 {[%clk 0:01:33]}  e6 {[%clk 0:01:49]} 20. Nxd4 {[%clk 0:01:27]}  Qh4+ {[%clk 0:01:48]} 21. Kg1 {[%clk 0:01:27]}  cxd4 {[%clk 0:01:44]} 22. Ra3 {[%clk 0:01:09]}  Ng4 {[%clk 0:01:35]} 23. Rf4 {[%clk 0:01:00]}  e5 {[%clk 0:01:34]} 24. Rxg4 {[%clk 0:00:51]}  Bxg4 {[%clk 0:01:31]} 25. Qe1 {[%clk 0:00:49]}  Ng5 {[%clk 0:01:19]} 26. Qf2 {[%clk 0:00:34]}  O-O-O {[%clk 0:01:02]} 27. Nf1 {[%clk 0:00:23]}  Qh6 {[%clk 0:00:39]} 28. Rg3 {[%clk 0:00:16]}  Rf8 {[%clk 0:00:38]} 29. Qd2 {[%clk 0:00:12]}  Rf4 {[%clk 0:00:38]} 30. c3 {[%clk 0:00:11]}  Kc7 {[%clk 0:00:34]} 31. cxd4 {[%clk 0:00:11]}  Nh3+ {[%clk 0:00:33]} 32. Bxh3 {[%clk 0:00:03]}  Rxf1+ {[%clk 0:00:33]} 33. Bxf1 {[%clk 0:00:03]}  Qxd2 {[%clk 0:00:34]} 34. Rxg4 {[%clk 0:00:02]}  Qxd4+ {[%clk 0:00:34]} 35. Kg2 {[%clk 0:00:02]}  Qxb2+ {[%clk 0:00:34]} 36. Kg3 {[%clk 0:00:03]}  Qd4 {[%clk 0:00:29]} 37. Bg2 {[%clk 0:00:02]}  Kb6 {[%clk 0:00:28]} 38. Rxg6 {[%clk 0:00:03]}  Qxa4 {[%clk 0:00:28]} 39. Rxd6+ {[%clk 0:00:02]}  Kc5 {[%clk 0:00:25]} 40. Re6 {[%clk 0:00:03]}  Qd7 {[%clk 0:00:20]} 41. Bh3 {[%clk 0:00:04]}  Qg7+ {[%clk 0:00:20]} 42. Bg4 {[%clk 0:00:04]}  a5 {[%clk 0:00:19]} 43. d6 {[%clk 0:00:05]}  Kd4 {[%clk 0:00:13]} 44. Re7 {[%clk 0:00:03]}  Qg5 {[%clk 0:00:12]} 45. Rxb7 {[%clk 0:00:01]}  Qf4+ {[%clk 0:00:13]} 46. Kh4 {[%clk 0:00:02]}  Qh6+ {[%clk 0:00:12]} 47. Kg3 {[%clk 0:00:02]}  Ke3 {[%clk 0:00:12]} 48. d7 {[%clk 0:00:02]}  Qf4+ {[%clk 0:00:12]} 49. Kh4 {[%clk 0:00:02]}  Qf6+ {[%clk 0:00:12]} 50. Kh5 {[%clk 0:00:02]}  Kf4 {[%clk 0:00:11]} 51. Rb6 {[%clk 0:00:02]}  Qg5# {[%clk 0:00:11]} 0-1


[Site "https://www.chess.com"]

[Event "Titled Tuesday Blitz November 08 Early 2022"]
[White "Bagwe Gaurang"]
[Black "Urazayev, Arystanbek"]
[WhiteFideId "45039895"]
[BlackFideId "13709810"]
[WhiteElo "1847"]
[BlackElo "2441"]
[Result "0-1"]
[Round "04"]
[TimeControl "180+1"]
[Date "2022.11.08"]
[WhiteClock "0:00:02"]
[BlackClock "0:00:38"]

1. e4 {[%clk 0:03:00]}  c6 {[%clk 0:03:00]} 2. d4 {[%clk 0:02:59]}  d5 {[%clk 0:03:00]} 3. exd5 {[%clk 0:03:00]}  cxd5 {[%clk 0:03:01]} 4. c4 {[%clk 0:03:00]}  Nf6 {[%clk 0:03:01]} 5. Nc3 {[%clk 0:03:01]}  g6 {[%clk 0:03:01]} 6. Qb3 {[%clk 0:02:51]}  Bg7 {[%clk 0:03:01]} 7. cxd5 {[%clk 0:02:51]}  O-O {[%clk 0:03:02]} 8. Be2 {[%clk 0:02:49]}  a5 {[%clk 0:03:02]} 9. h3 {[%clk 0:02:44]}  a4 {[%clk 0:03:01]} 10. Nxa4 {[%clk 0:02:38]}  Nxd5 {[%clk 0:03:00]} 11. Nc3 {[%clk 0:02:25]}  Be6 {[%clk 0:02:50]} 12. Nf3 {[%clk 0:02:10]}  Nc6 {[%clk 0:02:35]} 13. Qd1 {[%clk 0:01:42]}  Qb6 {[%clk 0:02:21]} 14. O-O {[%clk 0:01:31]}  Nxd4 {[%clk 0:02:21]} 15. Nxd4 {[%clk 0:01:02]}  Bxd4 {[%clk 0:02:21]} 16. Nxd5 {[%clk 0:01:02]}  Bxd5 {[%clk 0:02:22]} 17. Be3 {[%clk 0:01:02]}  Bxe3 {[%clk 0:02:13]} 18. Qxd5 {[%clk 0:01:01]}  Qxb2 {[%clk 0:02:12]} 19. Bc4 {[%clk 0:00:50]}  Bxf2+ {[%clk 0:02:10]} 20. Kh1 {[%clk 0:00:35]}  e6 {[%clk 0:02:10]} 21. Qf3 {[%clk 0:00:29]}  Bc5 {[%clk 0:02:01]} 22. Rab1 {[%clk 0:00:28]}  Qd4 {[%clk 0:02:01]} 23. Bb3 {[%clk 0:00:26]}  b6 {[%clk 0:01:59]} 24. Rbd1 {[%clk 0:00:26]}  Qe5 {[%clk 0:01:46]} 25. Rd7 {[%clk 0:00:26]}  Bd6 {[%clk 0:01:46]} 26. Kg1 {[%clk 0:00:08]}  Qh2+ {[%clk 0:01:38]} 27. Kf2 {[%clk 0:00:09]}  Rad8 {[%clk 0:01:34]} 28. Rxd8 {[%clk 0:00:07]}  Rxd8 {[%clk 0:01:32]} 29. Ke2 {[%clk 0:00:07]}  Qe5+ {[%clk 0:01:31]} 30. Qe3 {[%clk 0:00:06]}  Qh5+ {[%clk 0:01:24]} 31. Qf3 {[%clk 0:00:05]}  Qe5+ {[%clk 0:01:18]} 32. Qe3 {[%clk 0:00:05]}  Qb2+ {[%clk 0:01:17]} 33. Qd2 {[%clk 0:00:05]}  Qxd2+ {[%clk 0:01:16]} 34. Kxd2 {[%clk 0:00:05]}  Kg7 {[%clk 0:01:16]} 35. Kc3 {[%clk 0:00:05]}  h5 {[%clk 0:01:15]} 36. Kc4 {[%clk 0:00:05]}  Bc5 {[%clk 0:01:15]} 37. Kc3 {[%clk 0:00:03]}  h4 {[%clk 0:01:10]} 38. Rf4 {[%clk 0:00:01]}  g5 {[%clk 0:01:10]} 39. Ra4 {[%clk 0:00:02]}  Rd6 {[%clk 0:01:02]} 40. Ra7 {[%clk 0:00:02]}  Kg6 {[%clk 0:01:02]} 41. Ra8 {[%clk 0:00:02]}  f5 {[%clk 0:01:02]} 42. Rg8+ {[%clk 0:00:02]}  Kf6 {[%clk 0:01:02]} 43. Kc2 {[%clk 0:00:01]}  Be3 {[%clk 0:01:01]} 44. Bc4 {[%clk 0:00:01]}  Rd2+ {[%clk 0:01:01]} 45. Kb3 {[%clk 0:00:02]}  Rxg2 {[%clk 0:01:00]} 46. Re8 {[%clk 0:00:03]}  Ke5 {[%clk 0:00:54]} 47. Bxe6 {[%clk 0:00:03]}  Rg3 {[%clk 0:00:47]} 48. Bd7+ {[%clk 0:00:03]}  Kf6 {[%clk 0:00:44]} 49. Kc4 {[%clk 0:00:03]}  Rxh3 {[%clk 0:00:40]} 50. Rf8+ {[%clk 0:00:02]}  Ke7 {[%clk 0:00:40]} 51. Bxf5 {[%clk 0:00:02]}  Rf3 {[%clk 0:00:38]} 0-1


[Site "https://www.chess.com"]

[Event "Titled Tuesday Blitz November 08 Early 2022"]
[White "Balkum, Alexander"]
[Black "Lopez Martinez, Josep Manuel"]
[WhiteFideId "2005069"]
[BlackFideId "2212943"]
[WhiteElo "2361"]
[BlackElo "2471"]
[Result "0-1"]
[Round "04"]
[TimeControl "180+1"]
[Date "2022.11.09"]
[WhiteClock "0:00:11"]
[BlackClock "0:01:53"]

1. e4 {[%clk 0:02:57]}  c6 {[%clk 0:02:51]} 2. d4 {[%clk 0:02:56]}  d5 {[%clk 0:02:50]} 3. Nc3 {[%clk 0:02:52]}  dxe4 {[%clk 0:02:50]} 4. Nxe4 {[%clk 0:02:53]}  Nf6 {[%clk 0:02:50]} 5. Nxf6+ {[%clk 0:02:54]}  gxf6 {[%clk 0:02:50]} 6. c3 {[%clk 0:02:54]}  Bf5 {[%clk 0:02:49]} 7. Nf3 {[%clk 0:02:53]}  e6 {[%clk 0:02:47]} 8. g3 {[%clk 0:02:54]}  Be4 {[%clk 0:02:44]} 9. Bg2 {[%clk 0:02:45]}  h5 {[%clk 0:02:44]} 10. O-O {[%clk 0:02:36]}  Qd5 {[%clk 0:02:42]} 11. c4 {[%clk 0:02:28]}  Qa5 {[%clk 0:02:32]} 12. Bd2 {[%clk 0:01:50]}  Bb4 {[%clk 0:02:28]} 13. Qe2 {[%clk 0:01:12]}  Bxf3 {[%clk 0:02:25]} 14. Qxf3 {[%clk 0:01:09]}  Bxd2 {[%clk 0:02:20]} 15. Qxf6 {[%clk 0:01:09]}  Rg8 {[%clk 0:02:20]} 16. d5 {[%clk 0:01:07]}  Nd7 {[%clk 0:02:19]} 17. Qh4 {[%clk 0:00:46]}  Bg5 {[%clk 0:02:12]} 18. Qxh5 {[%clk 0:00:45]}  cxd5 {[%clk 0:02:10]} 19. cxd5 {[%clk 0:00:44]}  Nf6 {[%clk 0:02:10]} 20. Qf3 {[%clk 0:00:36]}  Nxd5 {[%clk 0:02:09]} 21. Rfe1 {[%clk 0:00:27]}  Be7 {[%clk 0:02:08]} 22. Rac1 {[%clk 0:00:25]}  Rd8 {[%clk 0:02:07]} 23. h4 {[%clk 0:00:20]}  Qxa2 {[%clk 0:02:02]} 24. h5 {[%clk 0:00:17]}  Qxb2 {[%clk 0:02:01]} 25. Rb1 {[%clk 0:00:18]}  Qf6 {[%clk 0:02:00]} 26. Qb3 {[%clk 0:00:16]}  Kf8 {[%clk 0:01:56]} 27. Qxb7 {[%clk 0:00:15]}  Bc5 {[%clk 0:01:55]} 28. Re2 {[%clk 0:00:11]}  Rxg3 {[%clk 0:01:53]} 0-1


[Site "https://www.chess.com"]